{"text_format":"1","workbook":"xlsx","n_sheets":2,"sheets":["Хайрварин","Реестр инцидентов"],"not_rendered":{"charts":0,"images":0,"macros":1,"external_links":0,"defined_names":11,"comments":0,"pivot_tables":0},"unopened":[],"bounds":{"document_bytes":16777216,"sheet_cells":100000,"rows_first":2000,"rows_last":500,"rows_between":2000,"halvings":0,"cell_chars":16384,"cell_head_chars":4096},"cells_cut":0,"cells_raw":0,"read":"whole","date_system":"1900"}

{"sheet":"Хайрварин","index":0,"n_rows":259,"n_cols":14,"rows_kept":259,"cut":false,"hidden":false,"merged":[]}
["Создатель","Номер инцидента","Дата создания","Состояние","Ошибка регистрации","Ошибка подтверждена?","Работа РГ","Апелляция",null,"№","Состав группы из представления","Состав группы","Ошибки","Да"]
["Баженова Анастасия Станиславовна",null,null,null,null,null,null,null,null,1,"Анастасия Баженова","Баженова Анастасия Станиславовна",{"$f":"COUNTIF(A:A,K2)","v":0},"Нет"]
[null,null,null,null,null,null,null,null,null,2,"Александр Балабанов","Балабанов Александр Леонидович",{"$f":"COUNTIF(A:A,K3)","v":1},"Проработано"]
[null,null,null,null,null,null,null,null,null,3,"Дмитрий Балабанов","Балабанов Дмитрий Сергеевич",{"$f":"COUNTIF(A:A,K4)","v":0},"Не проработано"]
[null,null,null,null,null,null,null,null,null,4,"Алексей Василевский","Василевский Алексей Вадимович",{"$f":"COUNTIF(A:A,K5)","v":0}]
[null,null,null,null,null,null,null,null,null,5,"Дмитрий Галузо","Галузо Дмитрий Игоревич",{"$f":"COUNTIF(A:A,K6)","v":1}]
[null,null,null,null,null,null,null,null,null,6,"Динара Гериева","Гериева Динара Барасбиевна",{"$f":"COUNTIF(A:A,K7)","v":0}]
[null,null,null,null,null,null,null,null,null,7,"Зульфия Гериева","Гериева Зульфия Барасбиевна",{"$f":"COUNTIF(A:A,K8)","v":0}]
[null,null,null,null,null,null,null,null,null,8,"Владислав Гончаров","Гончаров Владислав Андреевич",{"$f":"COUNTIF(A:A,K9)","v":3}]
[null,null,null,null,null,null,null,null,null,9,"Андрей Демченко","Демченко Андрей Олегович",{"$f":"COUNTIF(A:A,K10)","v":0}]
[null,null,null,null,null,null,null,null,null,10,"Иван Долгов","Долгов Иван Андреевич",{"$f":"COUNTIF(A:A,K11)","v":1}]
[null,null,null,null,null,null,null,null,null,11,"Вячеслав Иванов","Иванов Вячеслав Алексеевич",{"$f":"COUNTIF(A:A,K12)","v":1}]
[null,null,null,null,null,null,null,null,null,12,"Михаил Иванов","Иванов Михаил Алексеевич",{"$f":"COUNTIF(A:A,K13)","v":0}]
["Балабанов Александр Леонидович",null,null,null,null,null,null,null,null,13,"Никита Иванюк","Иванюк Никита Романович",{"$f":"COUNTIF(A:A,K14)","v":2}]
["Александр Балабанов","150715/3752.1","2015-07-15T18:06:31","Разрешено","Некорректное описание",null,null,null,null,14,"Александр Карев","Карев Александр Витальевич",{"$f":"COUNTIF(A:A,K15)","v":2}]
[null,null,null,null,null,null,null,null,null,15,"Виктор Колесниченко","Колесниченко Виктор Ильич",{"$f":"COUNTIF(A:A,K16)","v":0}]
[null,null,null,null,null,null,null,null,null,16,"Вадим Леонтьев","Леонтьев Вадим Вадимович",{"$f":"COUNTIF(A:A,K17)","v":0}]
[null,null,null,null,null,null,null,null,null,17,"Надежда Маркушова","Маркушова Надежда Юрьевна",{"$f":"COUNTIF(A:A,K18)","v":0}]
[null,null,null,null,null,null,null,null,null,18,"Татьяна Метлова","Метлова Татьяна Анатольевна",{"$f":"COUNTIF(A:A,K19)","v":0}]
[null,null,null,null,null,null,null,null,null,19,"Сергей Скляр","Скляр Сергей Александрович",{"$f":"COUNTIF(A:A,K20)","v":0}]
[null,null,null,null,null,null,null,null,null,20,"Алексей Смирнов","Смирнов Алексей Дмитриевич",{"$f":"COUNTIF(A:A,K21)","v":0}]
[null,null,null,null,null,null,null,null,null,21,"Сергей Фокин","Фокин Сергей Дмитриевич",{"$f":"COUNTIF(A:A,K22)","v":1}]
[null,null,null,null,null,null,null,null,null,22,"Дмитрий Шуляк","Шуляк Дмитрий Викторович",{"$f":"COUNTIF(A:A,K23)","v":5}]
[null,null,null,null,null,null,null,null,null,23,null,null,{"$f":"COUNTIF(A:A,K24)","v":0}]
[null,null,null,null,null,null,null,null,null,24,null,null,{"$f":"COUNTIF(A:A,K25)","v":0}]
["Балабанов Дмитрий Сергеевич",null,null,null,null,null,null,null,null,25,null,null,{"$f":"COUNTIF(A:A,K26)","v":0}]
[null,null,null,null,null,null,null,null,null,26,null,null,{"$f":"COUNTIF(A:A,K27)","v":0}]
[null,null,null,null,null,null,null,null,null,27,null,null,{"$f":"COUNTIF(A:A,K28)","v":0}]
[null,null,null,null,null,null,null,null,null,28,null,null,{"$f":"COUNTIF(A:A,K29)","v":0}]
[null,null,null,null,null,null,null,null,null,29,null,null,{"$f":"COUNTIF(A:A,K30)","v":0}]
[null,null,null,null,null,null,null,null,null,30,null,null,{"$f":"COUNTIF(A:A,K31)","v":0}]
[null,null,null,null,null,null,null,null,null,31,null,null,{"$f":"COUNTIF(A:A,K32)","v":0}]
[null,null,null,null,null,null,null,null,null,32,null,null,{"$f":"COUNTIF(A:A,K33)","v":0}]
[null,null,null,null,null,null,null,null,null,33,null,null,{"$f":"COUNTIF(A:A,K34)","v":0}]
[null,null,null,null,null,null,null,null,null,34,null,null,{"$f":"COUNTIF(A:A,K35)","v":0}]
[null,null,null,null,null,null,null,null,null,35,null,null,{"$f":"COUNTIF(A:A,K36)","v":0}]
[null,null,null,null,null,null,null,null,null,36,null,null,{"$f":"COUNTIF(A:A,K37)","v":0}]
["Василевский Алексей Вадимович",null,null,null,null,null,null,null,null,37,null,null,{"$f":"COUNTIF(A:A,K38)","v":0}]
[null,null,null,null,null,null,null,null,null,38,null,null,{"$f":"COUNTIF(A:A,K39)","v":0}]
[null,null,null,null,null,null,null,null,null,39,null,null,{"$f":"COUNTIF(A:A,K40)","v":0}]
[null,null,null,null,null,null,null,null,null,40,null,null,{"$f":"COUNTIF(A:A,K41)","v":0}]
[null,null,null,null,null,null,null,null,null,null,null,"Итого",{"$f":"SUM(M2:M41)","v":17}]
[]
[]
[]
[]
[]
[]
[]
["Галузо Дмитрий Игоревич"]
["Дмитрий Галузо","150706/1705.1","2015-07-06T14:41:15","Разрешено","Отсутствие файлов"]
[]
[]
[]
[]
[]
[]
[]
[]
[]
[]
["Гериева Динара Барасбиевна"]
[]
[]
[]
[]
[]
[]
[]
[]
[]
[]
[]
["Гериева Зульфия Барасбиевна"]
[]
[]
[]
[]
[]
[]
[]
[]
[]
[]
[]
["Гончаров Владислав Андреевич"]
["Владислав Гончаров","150701/1056.1","2015-07-01T13:45:44","Разрешено","Некорректный контакт"]
["Владислав Гончаров","150703/1220.1","2015-07-03T13:54:09","Разрешено","Некорректное описание"]
["Владислав Гончаров","150706/1052.1","2015-07-06T13:11:42","Разрешено","Отсутствие файлов"]
[]
[]
[]
[]
[]
[]
[]
[]
["Демченко Андрей Олегович"]
[]
[]
[]
[]
[]
[]
[]
[]
[]
[]
[]
["Долгов Иван Андреевич"]
["Иван Долгов","150707/2081.1","2015-07-07T15:29:11","Разрешено","Есть сценарий"]
[]
[]
[]
[]
[]
[]
[]
[]
[]
[]
["Иванов Вячеслав Алексеевич"]
["Вячеслав Иванов","150715/2998.2","2015-07-15T16:52:22","Разрешено","Некорректный контакт"]
[]
[]
[]
[]
[]
[]
[]
[]
[]
[]
["Иванов Михаил Алексеевич"]
[]
[]
[]
[]
[]
[]
[]
[]
[]
[]
[]
["Иванюк Никита Романович"]
["Никита Иванюк","150702/1103.2","2015-07-02T14:10:50","Разрешено","Отсутствие файлов"]
["Никита Иванюк","150707/918.1","2015-07-07T12:53:15","Разрешено","Отсутствие файлов"]
[]
[]
[]
[]
[]
[]
[]
[]
[]
["Карев Александр Витальевич"]
["Александр Карев","150702/2720.1","2015-07-02T16:46:53","Разрешено","Неправомерный перевод"]
["Александр Карев","150713/1243.2","2015-07-13T13:39:56","Разрешено","Некорректный контакт"]
[]
[]
[]
[]
[]
[]
[]
[]
[]
["Колесниченко Виктор Ильич"]
[]
[]
[]
[]
[]
[]
[]
[]
[]
[]
[]
["Леонтьев Вадим Вадимович"]
[]
[]
[]
[]
[]
[]
[]
[]
[]
[]
[]
["Маркушова Надежда Юрьевна"]
[]
[]
[]
[]
[]
[]
[]
[]
[]
[]
[]
["Метлова Татьяна Анатольевна"]
[]
[]
[]
[]
[]
[]
[]
[]
[]
[]
[]
["Скляр Сергей Александрович"]
[]
[]
[]
[]
[]
[]
[]
[]
[]
[]
[]
["Смирнов Алексей Дмитриевич"]
[]
[]
[]
[]
[]
[]
[]
[]
[]
[]
[]
["Фокин Сергей Дмитриевич"]
["Сергей Фокин","150715/2130.1","2015-07-15T15:06:49","Разрешено","Некорректное описание"]
[]
[]
[]
[]
[]
[]
[]
[]
[]
[]
["Шуляк Дмитрий Викторович"]
["Дмитрий Шуляк","150713/2818.1","2015-07-13T16:40:59","Разрешено","Есть сценарий"]
["Дмитрий Шуляк","150714/2794.1","2015-07-14T17:03:41","Разрешено","Есть сценарий"]
["Дмитрий Шуляк","150714/3259.1","2015-07-14T18:00:33","Разрешено","Отсутствие файлов"]
["Дмитрий Шуляк","150715/1949.1","2015-07-15T14:47:36","Активный","Некорректный контакт"]
["Дмитрий Шуляк","150715/1949.2","2015-07-15T14:54:41","Активный","Некорректное описание"]

{"sheet":"Реестр инцидентов","index":1,"n_rows":171,"n_cols":16,"rows_kept":171,"cut":false,"hidden":false,"merged":[]}
[]
["Реестр некорректно зарегистрированных инцидентов"]
["Номер инцидента",null,null,"Дата создания",null,"Состояние",null,"Создал",null,null,null,"Отдел создавшего",null,null,null,"Ошибка регистрации"]
["150701/3.1",null,null,"2015-07-01T01:11:36",null,"Разрешено",null,"Михаил Гончаров",null,null,null,"Отдел поддержки клиентов",null,null,null,"Некорректный контакт"]
["150701/254.1",null,null,"2015-07-01T11:18:16",null,"Разрешено",null,"Александр Захаров",null,null,null,"Отдел поддержки клиентов",null,null,null,"Отсутствие файлов"]
["150701/272.2",null,null,"2015-07-01T11:23:39",null,"Разрешено",null,"Дарья Ревина",null,null,null,"Отдел поддержки клиентов",null,null,null,"Отсутствие файлов"]
["150701/444.1",null,null,"2015-07-01T11:54:49",null,"Разрешено",null,"Александр Захаров",null,null,null,"Отдел поддержки клиентов",null,null,null,"Отсутствие файлов"]
["150701/479.1",null,null,"2015-07-01T11:59:26",null,"Разрешено",null,"Александр Захаров",null,null,null,"Отдел поддержки клиентов",null,null,null,"Неправомерный перевод"]
["150701/513.1",null,null,"2015-07-01T12:05:12",null,"Разрешено",null,"Александр Захаров",null,null,null,"Отдел поддержки клиентов",null,null,null,"Отсутствие файлов"]
["150701/549.1",null,null,"2015-07-01T12:11:48",null,"Разрешено",null,"Игорь Рысенков",null,null,null,"Отдел поддержки клиентов",null,null,null,"Некорректный контакт"]
["150701/600.1",null,null,"2015-07-01T12:21:47",null,"Разрешено",null,"Кирилл Червяков",null,null,null,"Отдел поддержки клиентов",null,null,null,"Некорректный контакт"]
["150701/659.1",null,null,"2015-07-01T12:32:11",null,"Разрешено",null,"Денис Аманов",null,null,null,"Отдел поддержки клиентов",null,null,null,"Есть сценарий"]
["150701/764.1",null,null,"2015-07-01T12:51:20",null,"Разрешено",null,"Михаил Карпухин",null,null,null,"Отдел поддержки клиентов",null,null,null,"Отсутствие файлов"]
["150701/835.2",null,null,"2015-07-01T13:07:48",null,"Разрешено",null,"Кирилл Оськин",null,null,null,"Отдел поддержки клиентов",null,null,null,"Некорректный контакт"]
["150701/1056.1",null,null,"2015-07-01T13:45:44",null,"Разрешено",null,"Владислав Гончаров",null,null,null,"Отдел поддержки клиентов",null,null,null,"Некорректный контакт"]
["150701/1184.1",null,null,"2015-07-01T14:08:43",null,"Разрешено",null,"Никита Макаров",null,null,null,"Отдел поддержки клиентов",null,null,null,"Отсутствие файлов"]
["150701/1403.1",null,null,"2015-07-01T14:51:05",null,"Разрешено",null,"Андрей Симаков",null,null,null,"Отдел поддержки клиентов",null,null,null,"Отсутствие файлов"]
["150701/1906.1",null,null,"2015-07-01T16:10:20",null,"Разрешено",null,"Кирилл Червяков",null,null,null,"Отдел поддержки клиентов",null,null,null,"Некорректный контакт"]
["150701/1871.2",null,null,"2015-07-01T16:23:03",null,"Разрешено",null,"Максим Касьянов",null,null,null,"Отдел поддержки клиентов",null,null,null,"Есть сценарий"]
["150701/2100.1",null,null,"2015-07-01T16:39:58",null,"Разрешено",null,"Игорь Рысенков",null,null,null,"Отдел поддержки клиентов",null,null,null,"Некорректный контакт"]
["150701/2215.1",null,null,"2015-07-01T16:58:25",null,"Разрешено",null,"Александр Платонов",null,null,null,"Отдел поддержки клиентов",null,null,null,"Некорректный контакт"]
["150701/2657.1",null,null,"2015-07-01T18:03:09",null,"Разрешено",null,"Алексей Лукоянов",null,null,null,"Отдел поддержки клиентов",null,null,null,"Отсутствие файлов"]
["150701/2756.1",null,null,"2015-07-01T18:17:53",null,"Разрешено",null,"Анна Добросердова",null,null,null,"Отдел поддержки клиентов",null,null,null,"Неправомерный перевод"]
["150701/3124.1",null,null,"2015-07-01T21:48:36",null,"Разрешено",null,"Камиль Зарипов",null,null,null,"Отдел поддержки клиентов",null,null,null,"Отсутствие файлов"]
["150702/732.2",null,null,"2015-07-02T12:24:54",null,"Разрешено",null,"Юрий Алексеев",null,null,null,"Отдел поддержки клиентов",null,null,null,"Некорректный контакт"]
["150702/890.1",null,null,"2015-07-02T12:38:08",null,"Разрешено",null,"Сергей Моногаров",null,null,null,"Отдел поддержки клиентов",null,null,null,"Есть сценарий"]
["150702/1242.1",null,null,"2015-07-02T13:27:16",null,"Разрешено",null,"Александра Орешина",null,null,null,"Отдел поддержки клиентов",null,null,null,"Некорректный контакт"]
["150702/1103.2",null,null,"2015-07-02T14:10:50",null,"Разрешено",null,"Никита Иванюк",null,null,null,"Отдел поддержки клиентов",null,null,null,"Отсутствие файлов"]
["150702/2237.1",null,null,"2015-07-02T15:42:18",null,"Разрешено",null,"Амил Гусеинов",null,null,null,"Отдел поддержки клиентов",null,null,null,"Отсутствие файлов"]
["150702/2237.1",null,null,"2015-07-02T15:42:18",null,"Разрешено",null,"Амил Гусеинов",null,null,null,"Отдел поддержки клиентов",null,null,null,"Отсутствие файлов"]
["150702/2720.1",null,null,"2015-07-02T16:46:53",null,"Разрешено",null,"Александр Карев",null,null,null,"Отдел поддержки клиентов",null,null,null,"Неправомерный перевод"]
["150702/2855.1",null,null,"2015-07-02T17:11:44",null,"Разрешено",null,"Юрий Алексеев",null,null,null,"Отдел поддержки клиентов",null,null,null,"Некорректное описание"]
["150702/3215.1",null,null,"2015-07-02T17:52:18",null,"Разрешено",null,"Илья Болотских",null,null,null,"Отдел поддержки клиентов",null,null,null,"Отсутствие файлов"]
["150702/3667.1",null,null,"2015-07-02T19:31:33",null,"Разрешено",null,"Иван Кондрашов",null,null,null,"Отдел поддержки клиентов",null,null,null,"Некорректный контакт"]
["150702/3770.1",null,null,"2015-07-02T22:29:17",null,"Разрешено",null,"Андрей Федотов",null,null,null,"Отдел поддержки клиентов",null,null,null,"Отсутствие файлов"]
["150703/248.1",null,null,"2015-07-03T11:12:47",null,"Разрешено",null,"Иван Кондрашов",null,null,null,"Отдел поддержки клиентов",null,null,null,"Отсутствие файлов"]
["150703/434.1",null,null,"2015-07-03T11:49:11",null,"Разрешено",null,"Дмитрий Казаков",null,null,null,"Отдел поддержки клиентов",null,null,null,"Отсутствие файлов"]
["150703/582.1",null,null,"2015-07-03T12:11:15",null,"Разрешено",null,"Олег Руднев",null,null,null,"Отдел поддержки клиентов",null,null,null,"Отсутствие файлов"]
["150703/689.1",null,null,"2015-07-03T12:27:51",null,"Разрешено",null,"Александр Александров",null,null,null,"Отдел поддержки клиентов",null,null,null,"Отсутствие файлов"]
["150703/1037.1",null,null,"2015-07-03T13:31:23",null,"Разрешено",null,"Николай Пурик",null,null,null,"Отдел поддержки клиентов",null,null,null,"Отсутствие файлов"]
["150703/1220.1",null,null,"2015-07-03T13:54:09",null,"Разрешено",null,"Владислав Гончаров",null,null,null,"Отдел поддержки клиентов",null,null,null,"Некорректное описание"]
["150703/1784.1",null,null,"2015-07-03T15:18:46",null,"Разрешено",null,"Юрий Алексеев",null,null,null,"Отдел поддержки клиентов",null,null,null,"Некорректное описание"]
["150703/1916.1",null,null,"2015-07-03T15:37:42",null,"Разрешено",null,"Павел Гайдай",null,null,null,"Отдел поддержки клиентов",null,null,null,"Некорректный контакт"]
["150703/2257.1",null,null,"2015-07-03T16:32:45",null,"Разрешено",null,"Станислав Беляев",null,null,null,"Отдел поддержки клиентов",null,null,null,"Отсутствие файлов"]
["150703/2668.1",null,null,"2015-07-03T17:25:14",null,"Разрешено",null,"Иван Михалев",null,null,null,"Отдел поддержки клиентов",null,null,null,"Отсутствие файлов"]
["150703/2829.2",null,null,"2015-07-03T17:53:19",null,"Разрешено",null,"Данияр Карабалинов",null,null,null,"Отдел поддержки клиентов",null,null,null,"Есть сценарий"]
["150704/87.1",null,null,"2015-07-04T18:23:23",null,"Разрешено",null,"Павел Звездин",null,null,null,"Отдел поддержки клиентов",null,null,null,"Неправомерный перевод"]
["150705/22.1",null,null,"2015-07-05T13:00:46",null,"Разрешено",null,"Александр Захаров",null,null,null,"Отдел поддержки клиентов",null,null,null,"Отсутствие файлов"]
["150706/9.2",null,null,"2015-07-06T06:49:54",null,"Разрешено",null,"Данил Французов",null,null,null,"Отдел поддержки клиентов",null,null,null,"Отсутствие файлов"]
["150706/336.1",null,null,"2015-07-06T11:23:58",null,"Разрешено",null,"Дарья Ревина",null,null,null,"Отдел поддержки клиентов",null,null,null,"Отсутствие файлов"]
["150706/432.1",null,null,"2015-07-06T11:39:25",null,"Разрешено",null,"Антон Гуркин",null,null,null,"Отдел поддержки клиентов",null,null,null,"Отсутствие файлов"]
["150706/638.2",null,null,"2015-07-06T12:11:21",null,"Разрешено",null,"Евгений Пикунов",null,null,null,"Отдел поддержки клиентов",null,null,null,"Неправомерный перевод"]
["150706/859.1",null,null,"2015-07-06T12:39:29",null,"Разрешено",null,"Александр Захаров",null,null,null,"Отдел поддержки клиентов",null,null,null,"Отсутствие файлов"]
["150706/1052.1",null,null,"2015-07-06T13:11:42",null,"Разрешено",null,"Владислав Гончаров",null,null,null,"Отдел поддержки клиентов",null,null,null,"Отсутствие файлов"]
["150706/1350.1",null,null,"2015-07-06T13:53:48",null,"Разрешено",null,"Начын Монгуш",null,null,null,"Отдел поддержки клиентов",null,null,null,"Отсутствие файлов"]
["150706/1366.2",null,null,"2015-07-06T13:56:52",null,"Разрешено",null,"Камиль Зарипов",null,null,null,"Отдел поддержки клиентов",null,null,null,"Отсутствие файлов"]
["150706/1597.1",null,null,"2015-07-06T14:25:25",null,"Разрешено",null,"Дарья Ревина",null,null,null,"Отдел поддержки клиентов",null,null,null,"Некорректный контакт"]
["150706/1685.1",null,null,"2015-07-06T14:38:03",null,"Разрешено",null,"Кирилл Червяков",null,null,null,"Отдел поддержки клиентов",null,null,null,"Отсутствие файлов"]
["150706/1705.1",null,null,"2015-07-06T14:41:15",null,"Разрешено",null,"Дмитрий Галузо",null,null,null,"Отдел поддержки клиентов",null,null,null,"Отсутствие файлов"]
["150706/1853.1",null,null,"2015-07-06T14:58:30",null,"Разрешено",null,"Александр Федосеев",null,null,null,"Отдел поддержки клиентов",null,null,null,"Неправомерный перевод"]
["150706/1890.1",null,null,"2015-07-06T15:04:57",null,"Разрешено",null,"Игорь Ройзман",null,null,null,"Отдел поддержки клиентов",null,null,null,"Некорректный контакт"]
["150706/2007.2",null,null,"2015-07-06T15:25:14",null,"Разрешено",null,"Александра Зимина",null,null,null,"Отдел поддержки клиентов",null,null,null,"Отсутствие файлов"]
["150706/2779.1",null,null,"2015-07-06T17:01:23",null,"Разрешено",null,"Чингис Дженгуров",null,null,null,"Отдел поддержки клиентов",null,null,null,"Неправомерный перевод"]
["150706/3704.2",null,null,"2015-07-06T19:08:21",null,"Разрешено",null,"Лия Заяц",null,null,null,"Отдел поддержки клиентов",null,null,null,"Отсутствие файлов"]
["150706/3947.1",null,null,"2015-07-06T23:25:22",null,"Разрешено",null,"Иван Михалев",null,null,null,"Отдел поддержки клиентов",null,null,null,"Неправомерный перевод"]
["150707/402.1",null,null,"2015-07-07T11:34:19",null,"Разрешено",null,"Арсений Карпусенко",null,null,null,"Отдел поддержки клиентов",null,null,null,"Некорректный контакт"]
["150707/698.1",null,null,"2015-07-07T12:22:06",null,"Разрешено",null,"Юрий Алексеев",null,null,null,"Отдел поддержки клиентов",null,null,null,"Неправомерный перевод"]
["150707/918.1",null,null,"2015-07-07T12:53:15",null,"Разрешено",null,"Никита Иванюк",null,null,null,"Отдел поддержки клиентов",null,null,null,"Отсутствие файлов"]
["150707/909.2",null,null,"2015-07-07T12:58:17",null,"Разрешено",null,"Андрей Федотов",null,null,null,"Отдел поддержки клиентов",null,null,null,"Отсутствие файлов"]
["150707/1026.1",null,null,"2015-07-07T13:07:32",null,"Разрешено",null,"Евгений Макаров",null,null,null,"Отдел поддержки клиентов",null,null,null,"Неправомерный перевод"]
["150707/1131.1",null,null,"2015-07-07T13:20:41",null,"Разрешено",null,"Камиль Зарипов",null,null,null,"Отдел поддержки клиентов",null,null,null,"Отсутствие файлов"]
["150707/1523.1",null,null,"2015-07-07T14:11:40",null,"Разрешено",null,"Артем Шишкин",null,null,null,"Отдел персональной поддержки клиентов",null,null,null,"Некорректный контакт"]
["150707/1556.1",null,null,"2015-07-07T14:17:13",null,"Разрешено",null,"Алексей Лукоянов",null,null,null,"Отдел поддержки клиентов",null,null,null,"Отсутствие файлов"]
["150707/1589.1",null,null,"2015-07-07T14:21:48",null,"Разрешено",null,"Дмитрий Исаев",null,null,null,"Отдел поддержки клиентов",null,null,null,"Отсутствие файлов"]
["150707/1822.1",null,null,"2015-07-07T14:54:04",null,"Разрешено",null,"Игорь Рысенков",null,null,null,"Отдел поддержки клиентов",null,null,null,"Есть сценарий"]
["150707/2081.1",null,null,"2015-07-07T15:29:11",null,"Разрешено",null,"Иван Долгов",null,null,null,"Отдел поддержки клиентов",null,null,null,"Есть сценарий"]
["150707/2399.1",null,null,"2015-07-07T16:09:54",null,"Разрешено",null,"Максим Зонтов",null,null,null,"Отдел поддержки клиентов",null,null,null,"Отсутствие файлов"]
["150707/2725.1",null,null,"2015-07-07T16:53:56",null,"Разрешено",null,"Дмитрий Лысак",null,null,null,"Отдел поддержки клиентов",null,null,null,"Некорректное описание"]
["150707/3022.1",null,null,"2015-07-07T17:28:50",null,"Разрешено",null,"Арсений Карпусенко",null,null,null,"Отдел поддержки клиентов",null,null,null,"Некорректный контакт"]
["150707/3354.1",null,null,"2015-07-07T18:15:59",null,"Разрешено",null,"Александра Орешина",null,null,null,"Отдел поддержки клиентов",null,null,null,"Отсутствие файлов"]
["150707/3578.1",null,null,"2015-07-07T19:14:14",null,"Разрешено",null,"Руслан Сильманович",null,null,null,"Отдел поддержки клиентов",null,null,null,"Отсутствие файлов"]
["150708/581.1",null,null,"2015-07-08T12:00:30",null,"Разрешено",null,"Михаил Карпухин",null,null,null,"Отдел поддержки клиентов",null,null,null,"Отсутствие файлов"]
["150708/603.1",null,null,"2015-07-08T12:03:11",null,"Разрешено",null,"Дмитрий Казаков",null,null,null,"Отдел поддержки клиентов",null,null,null,"Некорректный контакт"]
["150708/920.2",null,null,"2015-07-08T12:49:05",null,"Разрешено",null,"Алексей Лукоянов",null,null,null,"Отдел поддержки клиентов",null,null,null,"Отсутствие файлов"]
["150708/1478.1",null,null,"2015-07-08T14:02:09",null,"Разрешено",null,"Игорь Рысенков",null,null,null,"Отдел поддержки клиентов",null,null,null,"Отсутствие файлов"]
["150708/1916.1",null,null,"2015-07-08T15:09:05",null,"Разрешено",null,"Михаил Козырин",null,null,null,"Отдел поддержки клиентов",null,null,null,"Неправомерный перевод"]
["150708/2178.1",null,null,"2015-07-08T15:42:14",null,"Разрешено",null,"Дмитрий Казаков",null,null,null,"Отдел поддержки клиентов",null,null,null,"Есть сценарий"]
["150708/3244.1",null,null,"2015-07-08T17:59:39",null,"Разрешено",null,"Максим Зонтов",null,null,null,"Отдел поддержки клиентов",null,null,null,"Некорректный контакт"]
["150708/3318.1",null,null,"2015-07-08T18:10:06",null,"Разрешено",null,"Александра Орешина",null,null,null,"Отдел поддержки клиентов",null,null,null,"Отсутствие файлов"]
["150708/3381.1",null,null,"2015-07-08T18:18:31",null,"Разрешено",null,"Юрий Алексеев",null,null,null,"Отдел поддержки клиентов",null,null,null,"Отсутствие файлов"]
["150708/1313.2",null,null,"2015-07-08T19:23:29",null,"Разрешено",null,"Арсений Карпусенко",null,null,null,"Отдел поддержки клиентов",null,null,null,"Отсутствие файлов"]
["150708/3758.1",null,null,"2015-07-08T22:05:19",null,"Разрешено",null,"Камиль Зарипов",null,null,null,"Отдел поддержки клиентов",null,null,null,"Есть сценарий"]
["150708/3771.2",null,null,"2015-07-08T22:31:17",null,"Разрешено",null,"Дмитрий Коваленко",null,null,null,"Отдел поддержки клиентов",null,null,null,"Неправомерный перевод"]
["150709/330.1",null,null,"2015-07-09T11:19:53",null,"Разрешено",null,"Павел Пасынков",null,null,null,"Отдел персональной поддержки клиентов",null,null,null,"Отсутствие файлов"]
["150709/549.2",null,null,"2015-07-09T11:56:11",null,"Разрешено",null,"Александра Орешина",null,null,null,"Отдел поддержки клиентов",null,null,null,"Неправомерный перевод"]
["150709/772.1",null,null,"2015-07-09T12:28:14",null,"Разрешено",null,"Александра Орешина",null,null,null,"Отдел поддержки клиентов",null,null,null,"Отсутствие файлов"]
["150709/1028.2",null,null,"2015-07-09T13:23:28",null,"Разрешено",null,"Михаил Пужаев",null,null,null,"Отдел поддержки клиентов",null,null,null,"Отсутствие файлов"]
["150709/1203.1",null,null,"2015-07-09T13:32:30",null,"Разрешено",null,"Михаил Карпухин",null,null,null,"Отдел поддержки клиентов",null,null,null,"Отсутствие файлов"]
["150709/1260.1",null,null,"2015-07-09T13:39:26",null,"Разрешено",null,"Алексей Горлов",null,null,null,"Отдел поддержки клиентов",null,null,null,"Некорректный контакт"]
["150709/1292.1",null,null,"2015-07-09T13:43:11",null,"Разрешено",null,"Павел Гайдай",null,null,null,"Отдел поддержки клиентов",null,null,null,"Некорректный контакт"]
["150709/1508.1",null,null,"2015-07-09T14:12:07",null,"Разрешено",null,"Юрий Алексеев",null,null,null,"Отдел поддержки клиентов",null,null,null,"Отсутствие файлов"]
["150709/1799.1",null,null,"2015-07-09T14:50:46",null,"Разрешено",null,"Виктор Петренко",null,null,null,"Отдел поддержки клиентов",null,null,null,"Отсутствие файлов"]
["150709/1844.1",null,null,"2015-07-09T14:56:20",null,"Разрешено",null,"Евгений Бурчаков",null,null,null,"Отдел поддержки клиентов",null,null,null,"Отсутствие файлов"]
["150709/2015.1",null,null,"2015-07-09T15:17:40",null,"Разрешено",null,"Сергей Моногаров",null,null,null,"Отдел поддержки клиентов",null,null,null,"Есть сценарий"]
["150709/2146.3",null,null,"2015-07-09T15:37:32",null,"Разрешено",null,"Камиль Зарипов",null,null,null,"Отдел поддержки клиентов",null,null,null,"Некорректное описание"]
["150709/2708.1",null,null,"2015-07-09T16:45:34",null,"Разрешено",null,"Илья Болотских",null,null,null,"Отдел поддержки клиентов",null,null,null,"Отсутствие файлов"]
["150709/3288.1",null,null,"2015-07-09T18:03:23",null,"Разрешено",null,"Арсений Карпусенко",null,null,null,"Отдел поддержки клиентов",null,null,null,"Некорректный контакт"]
["150709/3335.1",null,null,"2015-07-09T18:09:02",null,"Разрешено",null,"Александр Захаров",null,null,null,"Отдел поддержки клиентов",null,null,null,"Отсутствие файлов"]
["150709/3635.1",null,null,"2015-07-09T19:38:11",null,"Разрешено",null,"Виктор Кошелев",null,null,null,"Отдел поддержки клиентов",null,null,null,"Отсутствие файлов"]
["150709/3723.1",null,null,"2015-07-09T22:47:49",null,"Разрешено",null,"Виктор Кошелев",null,null,null,"Отдел поддержки клиентов",null,null,null,"Отсутствие файлов"]
["150709/3729.3",null,null,"2015-07-09T23:35:59",null,"Разрешено",null,"Анна Добросердова",null,null,null,"Отдел поддержки клиентов",null,null,null,"Некорректный контакт"]
["150710/616.2",null,null,"2015-07-10T12:21:29",null,"Разрешено",null,"Дмитрий Каламбет",null,null,null,"Отдел поддержки клиентов",null,null,null,"Отсутствие файлов"]
["150710/869.1",null,null,"2015-07-10T12:56:11",null,"Разрешено",null,"Михаил Пужаев",null,null,null,"Отдел поддержки клиентов",null,null,null,"Некорректный контакт"]
["150710/1091.1",null,null,"2015-07-10T13:30:00",null,"Разрешено",null,"Дмитрий Каламбет",null,null,null,"Отдел поддержки клиентов",null,null,null,"Некорректный контакт"]
["150710/1207.1",null,null,"2015-07-10T13:48:42",null,"Разрешено",null,"Максим Зонтов",null,null,null,"Отдел поддержки клиентов",null,null,null,"Некорректный контакт"]
["150710/1470.1",null,null,"2015-07-10T14:27:52",null,"Активный",null,"Александр Матыс",null,null,null,"Отдел Развития Сервиса",null,null,null,"Отсутствие файлов"]
["150710/2635.1",null,null,"2015-07-10T17:28:02",null,"Разрешено",null,"Леонид Фомичев",null,null,null,"Отдел персональной поддержки клиентов",null,null,null,"Некорректный контакт"]
["150710/3057.1",null,null,"2015-07-10T18:50:07",null,"Разрешено",null,"Начын Монгуш",null,null,null,"Отдел поддержки клиентов",null,null,null,"Отсутствие файлов"]
["150713/403.1",null,null,"2015-07-13T11:33:15",null,"Разрешено",null,"Руслан Сильманович",null,null,null,"Отдел поддержки клиентов",null,null,null,"Неправомерный перевод"]
["150713/1119.1",null,null,"2015-07-13T13:10:42",null,"Разрешено",null,"Евгений Бурчаков",null,null,null,"Отдел поддержки клиентов",null,null,null,"Отсутствие файлов"]
["150713/1243.2",null,null,"2015-07-13T13:39:56",null,"Разрешено",null,"Александр Карев",null,null,null,"Отдел поддержки клиентов",null,null,null,"Некорректный контакт"]
["150713/645.3",null,null,"2015-07-13T14:47:42",null,"Разрешено",null,"Евгений Храмов",null,null,null,"Отдел поддержки клиентов",null,null,null,"Отсутствие файлов"]
["150713/2305.1",null,null,"2015-07-13T15:44:59",null,"Разрешено",null,"Роман Куранов",null,null,null,"Отдел поддержки клиентов",null,null,null,"Отсутствие файлов"]
["150713/2465.1",null,null,"2015-07-13T16:02:36",null,"Активный",null,"Дмитрий Исаев",null,null,null,"Отдел поддержки клиентов",null,null,null,"Отсутствие файлов"]
["150713/2818.1",null,null,"2015-07-13T16:40:59",null,"Разрешено",null,"Дмитрий Шуляк",null,null,null,"Отдел поддержки клиентов",null,null,null,"Есть сценарий"]
["150713/2922.1",null,null,"2015-07-13T16:52:19",null,"Разрешено",null,"Игорь Рысенков",null,null,null,"Отдел поддержки клиентов",null,null,null,"Некорректный контакт"]
["150713/2995.1",null,null,"2015-07-13T17:00:17",null,"Разрешено",null,"Никита Молоканкин",null,null,null,"Отдел поддержки клиентов",null,null,null,"Некорректное описание"]
["150713/4026.1",null,null,"2015-07-13T19:45:52",null,"Разрешено",null,"Андрей Фадеев",null,null,null,"Отдел поддержки клиентов",null,null,null,"Есть сценарий"]
["150713/4002.2",null,null,"2015-07-13T20:11:17",null,"Разрешено",null,"Дарья Ревина",null,null,null,"Отдел поддержки клиентов",null,null,null,"Некорректное описание"]
["150713/4132.1",null,null,"2015-07-13T21:58:52",null,"Разрешено",null,"Михаил Гончаров",null,null,null,"Отдел поддержки клиентов",null,null,null,"Некорректное описание"]
["150713/4141.1",null,null,"2015-07-13T22:16:31",null,"Разрешено",null,"Светлана Убушаева",null,null,null,"Отдел поддержки клиентов",null,null,null,"Есть сценарий"]
["150714/924.1",null,null,"2015-07-14T12:51:10",null,"Разрешено",null,"Никита Егоров",null,null,null,"Отдел поддержки клиентов",null,null,null,"Отсутствие файлов"]
["150714/1902.1",null,null,"2015-07-14T15:02:36",null,"Разрешено",null,"Алексей Горлов",null,null,null,"Отдел поддержки клиентов",null,null,null,"Некорректный контакт"]
["150714/2517.1",null,null,"2015-07-14T16:25:52",null,"Разрешено",null,"Кирилл Червяков",null,null,null,"Отдел поддержки клиентов",null,null,null,"Некорректный контакт"]
["150714/2554.1",null,null,"2015-07-14T16:31:36",null,"Активный",null,"Варвара Садчихина",null,null,null,"Отдел поддержки клиентов",null,null,null,"Отсутствие файлов"]
["150714/2794.1",null,null,"2015-07-14T17:03:41",null,"Разрешено",null,"Дмитрий Шуляк",null,null,null,"Отдел поддержки клиентов",null,null,null,"Есть сценарий"]
["150714/3259.1",null,null,"2015-07-14T18:00:33",null,"Разрешено",null,"Дмитрий Шуляк",null,null,null,"Отдел поддержки клиентов",null,null,null,"Отсутствие файлов"]
["150714/3571.1",null,null,"2015-07-14T18:54:31",null,"Разрешено",null,"Кирилл Червяков",null,null,null,"Отдел поддержки клиентов",null,null,null,"Отсутствие файлов"]
["150714/3829.1",null,null,"2015-07-14T22:49:07",null,"Активный",null,"Станислав Беляев",null,null,null,"Отдел поддержки клиентов",null,null,null,"Есть сценарий"]
["150715/829.4",null,null,"2015-07-15T13:16:24",null,"Разрешено",null,"Максим Шепелев",null,null,null,"Отдел поддержки клиентов",null,null,null,"Некорректный контакт"]
["150715/1181.1",null,null,"2015-07-15T13:19:18",null,"Разрешено",null,"Владимир Капустин",null,null,null,"Отдел поддержки клиентов",null,null,null,"Есть сценарий"]
["150715/1203.1",null,null,"2015-07-15T13:22:38",null,"Активный",null,"Дмитрий Исаев",null,null,null,"Отдел поддержки клиентов",null,null,null,"Отсутствие файлов"]
["150715/1298.1",null,null,"2015-07-15T13:32:21",null,"Разрешено",null,"Дарья Ревина",null,null,null,"Отдел поддержки клиентов",null,null,null,"Есть сценарий"]
["150715/1446.1",null,null,"2015-07-15T13:49:16",null,"Активный",null,"Дмитрий Исаев",null,null,null,"Отдел поддержки клиентов",null,null,null,"Отсутствие файлов"]
["150715/1466.1",null,null,"2015-07-15T13:51:20",null,"Активный",null,"Александр Платонов",null,null,null,"Отдел поддержки клиентов",null,null,null,"Некорректное описание"]
["150715/1820.1",null,null,"2015-07-15T14:31:29",null,"Активный",null,"Александр Платонов",null,null,null,"Отдел поддержки клиентов",null,null,null,"Некорректное описание"]
["150715/1906.1",null,null,"2015-07-15T14:42:52",null,"Разрешено",null,"Алексей Лукоянов",null,null,null,"Отдел поддержки клиентов",null,null,null,"Некорректное описание"]
["150715/1949.1",null,null,"2015-07-15T14:47:36",null,"Активный",null,"Дмитрий Шуляк",null,null,null,"Отдел поддержки клиентов",null,null,null,"Некорректный контакт"]
["150715/1949.2",null,null,"2015-07-15T14:54:41",null,"Активный",null,"Дмитрий Шуляк",null,null,null,"Отдел поддержки клиентов",null,null,null,"Некорректное описание"]
["150715/2033.1",null,null,"2015-07-15T14:56:49",null,"Разрешено",null,"Андрей Симаков",null,null,null,"Отдел поддержки клиентов",null,null,null,"Есть сценарий"]
["150715/2130.1",null,null,"2015-07-15T15:06:49",null,"Разрешено",null,"Сергей Фокин",null,null,null,"Отдел поддержки клиентов",null,null,null,"Некорректное описание"]
["150715/2127.2",null,null,"2015-07-15T15:11:10",null,"Активный",null,"Евгений Житарь",null,null,null,"Отдел поддержки клиентов",null,null,null,"Есть сценарий"]
["150715/2127.2",null,null,"2015-07-15T15:11:10",null,"Активный",null,"Евгений Житарь",null,null,null,"Отдел поддержки клиентов",null,null,null,"Есть сценарий"]
["150715/2169.1",null,null,"2015-07-15T15:11:34",null,"Активный",null,"Кирилл Червяков",null,null,null,"Отдел поддержки клиентов",null,null,null,"Некорректное описание"]
["150715/2270.1",null,null,"2015-07-15T15:23:03",null,"Разрешено",null,"Павел Пасынков",null,null,null,"Отдел персональной поддержки клиентов",null,null,null,"Некорректное описание"]
["150715/2332.1",null,null,"2015-07-15T15:30:01",null,"Активный",null,"Ильдар Муллагалиев",null,null,null,"Отдел поддержки клиентов",null,null,null,"Некорректное описание"]
["150715/2628.2",null,null,"2015-07-15T16:02:03",null,"Разрешено",null,"Иван Кондрашов",null,null,null,"Отдел поддержки клиентов",null,null,null,"Некорректное описание"]
["150715/2971.1",null,null,"2015-07-15T16:37:57",null,"Разрешено",null,"Евгений Храмов",null,null,null,"Отдел поддержки клиентов",null,null,null,"Отсутствие файлов"]
["150715/3023.1",null,null,"2015-07-15T16:42:27",null,"Активный",null,"Юрий Земков",null,null,null,"Отдел поддержки клиентов",null,null,null,"Отсутствие файлов"]
["150715/3023.1",null,null,"2015-07-15T16:42:27",null,"Активный",null,"Юрий Земков",null,null,null,"Отдел поддержки клиентов",null,null,null,"Отсутствие файлов"]
["150715/2998.2",null,null,"2015-07-15T16:52:22",null,"Разрешено",null,"Вячеслав Иванов",null,null,null,"Отдел поддержки клиентов",null,null,null,"Некорректный контакт"]
["150715/3168.3",null,null,"2015-07-15T17:46:55",null,"Разрешено",null,"Евгений Пикунов",null,null,null,"Отдел поддержки клиентов",null,null,null,"Есть сценарий"]
["150715/3643.1",null,null,"2015-07-15T17:50:42",null,"Разрешено",null,"Павел Звездин",null,null,null,"Отдел поддержки клиентов",null,null,null,"Неправомерный перевод"]
["150715/3752.1",null,null,"2015-07-15T18:06:31",null,"Разрешено",null,"Александр Балабанов",null,null,null,"Отдел поддержки клиентов",null,null,null,"Некорректное описание"]
["150715/3893.1",null,null,"2015-07-15T18:21:03",null,"Активный",null,"Наталья Белкина",null,null,null,"Отдел поддержки клиентов",null,null,null,"Некорректное описание"]
["150715/3894.1",null,null,"2015-07-15T18:21:09",null,"Активный",null,"Игорь Рысенков",null,null,null,"Отдел поддержки клиентов",null,null,null,"Есть сценарий"]
["150715/4156.1",null,null,"2015-07-15T19:08:38",null,"Разрешено",null,"Андрей Федотов",null,null,null,"Отдел поддержки клиентов",null,null,null,"Отсутствие файлов"]
["150715/4207.1",null,null,"2015-07-15T19:35:50",null,"Активный",null,"Иван Михалев",null,null,null,"Отдел поддержки клиентов",null,null,null,"Некорректное описание"]
["150715/4219.1",null,null,"2015-07-15T19:43:37",null,"Разрешено",null,"Тарас Андросенко",null,null,null,"Отдел поддержки клиентов",null,null,null,"Есть сценарий"]
["150715/4355.1",null,null,"2015-07-15T21:57:15",null,"Разрешено",null,"Тарас Андросенко",null,null,null,"Отдел поддержки клиентов",null,null,null,"Есть сценарий"]
["150715/4403.1",null,null,"2015-07-15T23:30:30",null,"Активный",null,"Магомет Гасанов",null,null,null,"Отдел поддержки клиентов",null,null,null,"Отсутствие файлов"]